[Event "WSTCC-65 2024"]
[Site "Krakow"]
[Date "2024.07.02"]
[Round "1.1"]
[White "Nunn, John D M"]
[Black "Thuesen, Mogens"]
[Result "1-0"]
[ECO "C12"]
[WhiteElo "2552"]
[BlackElo "2158"]
[Annotator "TA"]
[PlyCount "71"]
[EventDate "2024.07.01"]
[EventType "team-tourn"]
[EventCountry "POL"]
[SourceTitle "playchess.com"]
[Source "ChessBase"]
[SourceQuality "1"]
[TimeControl "40/5400+30:1800+30"]

{[%evp 11,71,0,0,0,0,0,6,8,13,7,3,9,18,20,22,16,35,32,39,14,11,0,26,22,30,26,61,43,59,0,45,35,81,87,80,86,95,61,127,121,122,122,144,129,219,216,247,212,420,424,404,414,408,404,480,459,520,508,519,508,558,551]} 1. e4 {[%emt 0:00:07]} e6 {[%emt 0:00:40]} 2. d4 {[%emt 0:00:07]} d5 {[%emt 0:00:05]} 3. Nc3 {[%emt 0:00:07]} Nf6 {[%emt 0:00:06]} 4. Bg5 {[%emt 0:00:53]} Bb4 {[%emt 0:00:19]} 5. e5 {[%emt 0:00:37]} h6 {[%emt 0:00:09]} 6. Bc1 {[%emt 0:00:32]} Ne4 {[%emt 0:01:02]} 7. Qg4 {[%emt 0:00:17]} g6 {[%emt 0:06:19][%cal Oc7c5]} (7... Bxc3+ $6 8. bxc3 Kf8 9. Ne2 $16) (7... Nxc3 $6 8. Qxg7 Kd7 9. Bd2 $16 (9. bxc3 $2 {too greedy.} Bxc3+ 10. Kd1 Bxa1 $19)) 8. Nge2 {[%emt 0:01:00]} c5 {[%emt 0:01:02] aiming for ...cxd4.} 9. a3 {[%emt 0:01:51] The position is equal.} Bxc3+ {[%emt 0:20:35]} 10. Nxc3 {[%emt 0:01:10]} Nxc3 {[%emt 0:00:46]} 11. bxc3 {[%emt 0:00:06]} Qc7 {[%emt 0:00:29]} 12. Bd2 {[%emt 0:03:53]} Bd7 {[%emt 0:02:05]} 13. Bd3 {[%emt 0:08:13]} Nc6 {[%emt 0:05:26]} 14. O-O {[%emt 0:09:30]} O-O-O {[%emt 0:04:18]} 15. Rfe1 {[%emt 0:01:45]} c4 {[%emt 0:04:05]} 16. Bf1 {[%emt 0:01:03]} Na5 {[%emt 0:02:45]} 17. a4 {[%emt 0:03:21]} Bc6 {[%emt 0:00:18]} 18. Qd1 {[%emt 0:05:13]} Qd7 {[%emt 0:01:11][%cal Oh8h7]} 19. Qb1 {[%emt 0:00:26]} b6 {[%emt 0:03:54][%cal Od8g8]} 20. Qb4 {[%emt 0:04:06]} (20. Qc1 $14) 20... g5 {[%emt 0:03:58]} 21. Be2 {[%emt 0:04:13]} Rhg8 {[%emt 0:08:30]} (21... Rdg8 $14) 22. Bh5 $16 {[%emt 0:06:44]} Qc7 {[%emt 0:03:39] [#]} 23. Re3 $1 {[%emt 0:10:18][%cal Be1e3,Be3h3,Bh3f3,Bf3f6][%mdl 32]} Be8 {[%emt 0:00:52]} 24. Rh3 {[%emt 0:00:06]} Bc6 {[%emt 0:06:31]} (24... Nc6 $14 25. Qa3 Qd7) 25. Rf3 {[%emt 0:01:31]} Rg7 {[%emt 0:01:03]} 26. Rf6 {[%emt 0:00:26]} Rh7 {[%emt 0:01:55]} 27. f4 {[%emt 0:02:05] White is much more active.} Be8 {[%emt 0:02:05]} (27... gxf4 $16 {was worth a try.} 28. Bxf4 Rdh8) 28. Rf1 $18 {[%emt 0:06:02]} ({Don't play} 28. fxg5 hxg5 29. g4 Nc6 $18) 28... Nc6 {[%emt 0:00:40]} 29. Qa3 {[%emt 0:05:43]} Qe7 $2 {[%emt 0:08:28] [#]} (29... gxf4 {is a better defense.} 30. Bxf4 a6) 30. Qxe7 {[%emt 0:02:56]} Nxe7 {[%emt 0:00:05]} 31. fxg5 {[%emt 0:00:05]} hxg5 {[%emt 0:01:48]} 32. Bxf7 {[%emt 0:00:19]} Bxf7 {[%emt 0:00:39]} 33. Rxf7 {[%emt 0:00:06] White is clearly winning.} Rdh8 {[%emt 0:01:03]} 34. Rxh7 {[%emt 0:05:14]} Rxh7 {[%emt 0:00:06]} 35. Rf8+ {[%emt 0:04:21]} Kb7 {[%emt 0:00:54]} 36. Bxg5 {[%emt 0:00:36] Weighted Error Value: White=0.07 (flawless) /Black=0.27 (precise) .  Mistake:       	White=1     	Black=4      Inaccurate:     	White=1     	Black=3      OK:         	White=14    	Black=9      Best:        	White=4     	---        Strong:       	White=1     	---} 1-0

[Event "WSTCC-65 2024"]
[Site "Krakow"]
[Date "2024.07.02"]
[Round "1.1"]
[White "Garcia Palermo, Carlos Horacio"]
[Black "Chubar, Vladimir"]
[Result "1-0"]
[ECO "A40"]
[WhiteElo "2419"]
[BlackElo "1836"]
[Annotator "TA"]
[PlyCount "63"]
[EventDate "2024.07.01"]
[EventType "team-tourn"]
[EventCountry "POL"]
[SourceTitle "playchess.com"]
[Source "ChessBase"]
[SourceQuality "1"]
[TimeControl "40/5400+30:1800+30"]

{[%evp 10,63,35,21,33,22,33,28,35,28,33,18,44,27,42,35,26,-7,61,10,123,108,110,115,129,127,127,136,287,246,395,397,573,571,552,420,619,604,604,602,730,721,830,834,829,829,868,872,29990,29991,29991,29992,29994,29995,29995,29996]} 1. d4 {[%emt 0:00:04]} e6 {[%emt 0:00:31]} 2. c4 {[%emt 0:00:36]} f5 {[%emt 0:00:50]} 3. Nf3 {[%emt 0:01:06]} Nf6 {[%emt 0:00:36]} 4. g3 {[%emt 0:00:08]} c6 {[%emt 0:00:30]} 5. Bg2 {[%emt 0:00:22]} d5 {[%emt 0:00:32]} 6. Bf4 {[%emt 0:00:53]} Be7 {[%emt 0:01:54]} 7. Nbd2 {[%emt 0:02:25]} O-O {[%emt 0:01:40]} 8. h4 {[%emt 0:01:14]} Ne4 {[%emt 0:10:58] White has an edge.} 9. O-O {[%emt 0:03:14]} Nd7 {[%emt 0:02:05]} 10. Qb3 {[%emt 0:03:33]} Kh8 {[%emt 0:02:54]} 11. Nxe4 {[%emt 0:02:21]} fxe4 {[%emt 0:00:26]} 12. Ng5 {[%emt 0:00:18]} Nf6 {[%emt 0:06:46]} 13. Bh3 {[%emt 0:10:08]} dxc4 {[%emt 0:08:56]} (13... h6 14. Nxe6 Bxe6 15. Bxe6 $14) (13... Nh5 $11) 14. Qc2 {[%emt 0:01:13]} ({Better is} 14. Qxc4 $14 Nd5 15. e3 (15. Nxe6 $2 Bxe6 16. Bxe6 Nxf4 $19)) 14... Nd5 {[%emt 0:04:39]} (14... Qxd4 $11 15. Rad1 (15. Nxe6 Bxe6 16. Bxe6 b5 $15) (15. Bxe6 b5 $11) 15... Qb6) 15. Qxe4 $16 {[%emt 0:00:53][%csl Gg5][%cal Re4h7] White is more active.} (15. Nxe6 $2 Bxe6 16. Bxe6 Nxf4 17. gxf4 Rxf4 $19) 15... Bxg5 {[%emt 0:05:36]} 16. Bxg5 {[%emt 0:00:13]} Qb6 {[%emt 0:01:05]} 17. Qe5 {[%emt 0:13:29]} (17. Bxe6 $2 Re8 (17... Qxb2 18. Rfb1 $14) 18. Bxd5 Rxe4 19. Bxe4 h6 $19 (19... Qxb2 20. e3 $17) (19... Qxd4 $2 20. Rfd1 $18)) 17... Qxb2 {[%emt 0:03:48] [#]} 18. h5 $1 $40 {[%emt 0:00:55][%mdl 128] White is out for blood.} (18. Bxe6 Bxe6 19. Rab1 Qc2 (19... Qxa2 20. Rxb7 Bf7 21. Bh6 $11) 20. Rxb7 Bf7 $17 (20... Qg6 $2 21. h5 $18)) 18... Qc2 $2 {[%emt 0:07:02] Repels e4. This move loses the game for Black.} (18... Rf7 $16 {was worth a try.} 19. Rac1 (19. Bxe6 Bxe6 20. Rab1 Qxa2 $14) 19... Kg8) 19. e4 {[%emt 0:00:40]} (19. Bxe6 $2 Bxe6 20. Qxe6 Rae8 $19) 19... Nf6 {[%emt 0:15:52]} (19... h6 {might work better.}) 20. h6 $18 {[%emt 0:00:17] And now Bxf6 would win.} (20. Bxe6 $2 {perishes.} Bxe6 (20... Nxe4 $2 21. h6 $18) 21. Qxe6 Rae8 $19 (21... Qxe4 22. Qxc4 Nxh5 23. Rae1 $15) (21... Nxe4 22. Bf4 $15)) 20... Rf7 {[%emt 0:04:48]} (20... Ne8 $142 21. Bf4 (21. Bxe6 Bxe6 22. Qxe6 gxh6 $18) 21... Qa4 22. hxg7+ (22. Bxe6 Bxe6 23. Qxe6 Rxf4 $18) 22... Nxg7) 21. hxg7+ {[%emt 0:05:43]} (21. Bxe6 Bxe6 22. Qxe6 Raf8 23. hxg7+ Kxg7 $18) 21... Kxg7 {[%emt 0:00:26][%cal Bh8g7,Bg7f7,Bf7e8][%mdl 32]} 22. Rae1 {[%emt 0:00:46] Strongly threatening Re3.} (22. Bxe6 Bxe6 23. Qxe6 Nxe4 24. Bh6+ (24. Rac1 Nxg5 $11) 24... Kg8 $18) 22... Bd7 {[%emt 0:02:28]} (22... h6 $142 23. Bh4 Qa4) 23. Bxf6+ {[%emt 0:00:43]} ({Weaker is} 23. Bxe6 Bxe6 24. Qxe6 a6 $18) 23... Rxf6 {[%emt 0:00:25] [#]} 24. Qg5+ {[%emt 0:00:09]} Kf7 {[%emt 0:01:02]} 25. Bg4 {[%emt 0:00:11]} Rg8 {[%emt 0:06:30][%cal Ba8g8,Bg8g7,Bg7f7,Bf7f8][%mdl 32]} 26. Bh5+ {[%emt 0:01:28]} Rfg6 {[%emt 0:00:56]} 27. Re3 {[%emt 0:03:31]} Ke8 {[%emt 0:01:02]} 28. d5 {[%emt 0:02:00][%cal Bd4d5,Bd5d6][%mdl 32] d6 is the strong threat.} Qxa2 {[%emt 0:04:10]} 29. d6 {[%emt 0:02:27][%csl Gd6][%cal Rg5e7] White mates.} R8g7 {[%emt 0:00:33]} 30. Qf6 {[%emt 0:00:23]} Rf7 {[%emt 0:01:39]} 31. Qh8+ {[%emt 0:00:54]} Rf8 {[%emt 0:00:49]} 32. Qxh7 {[%emt 0:00:10] Weighted Error Value: White=0.17 (very precise) /Black=0.92.  Mistake:       	White=1     	Black=6      Inaccurate:     	White=1     	Black=1      OK:         	White=6     	Black=4      Best:        	White=1     	---} 1-0

[Event "WSTCC-65 2024"]
[Site "Krakow"]
[Date "2024.07.02"]
[Round "1.1"]
[White "Meulders, Richard"]
[Black "Falk, Thomas"]
[Result "1/2-1/2"]
[ECO "A06"]
[WhiteElo "2154"]
[BlackElo "2022"]
[Annotator "RC"]
[PlyCount "83"]
[EventDate "2024.07.01"]
[EventType "team-tourn"]
[EventCountry "POL"]
[SourceTitle "playchess.com"]
[Source "ChessBase"]
[SourceQuality "1"]
[TimeControl "40/5400+30:1800+30"]

1. Nf3 {[%emt 0:00:05]} d5 {[%emt 0:00:06]} 2. b3 {[%emt 0:00:57]} Bf5 {[%emt 0:00:37]} 3. Bb2 {[%emt 0:00:10]} e6 {[%emt 0:00:05]} 4. g3 {[%emt 0:00:29]} Nf6 {[%emt 0:00:23]} 5. Bg2 {[%emt 0:01:28]} Be7 {[%emt 0:00:08]} 6. O-O {[%emt 0:00:47]} h6 {[%emt 0:00:07]} 7. d3 {[%emt 0:02:03]} O-O {[%emt 0:00:16]} 8. Nbd2 {[%emt 0:02:48]} c6 {[%emt 0:00:10]} 9. c4 {[%emt 0:06:09]} a5 {[%emt 0:00:23]} 10. a3 {[%emt 0:00:54]} Re8 {[%emt 0:03:44]} 11. Qc2 {[%emt 0:11:09]} Bf8 {[%emt 0:00:43]} 12. Rfd1 {[%emt 0:05:48]} Bh7 {[%emt 0:00:48]} 13. e4 {[%emt 0:10:36]} Na6 {[%emt 0:02:33]} 14. e5 {[%emt 0:08:19]} Nd7 {[%emt 0:00:11]} 15. Qc3 {[%emt 0:00:23]} Qb6 {[%emt 0:05:00]} 16. d4 {[%emt 0:06:51]} c5 {[%emt 0:14:34]} 17. Qe3 {[%emt 0:00:12]} Rad8 {[%emt 0:04:05]} 18. Rdc1 {[%emt 0:00:41]} cxd4 {[%emt 0:06:04]} 19. Bxd4 {[%emt 0:00:14]} Bc5 {[%emt 0:00:33]} 20. h4 {[%emt 0:01:05]} f6 {[%emt 0:04:43]} 21. exf6 {[%emt 0:01:19]} Nxf6 {[%emt 0:01:12]} 22. Bxc5 {[%emt 0:02:33]} Qxc5 {[%emt 0:02:55]} 23. cxd5 {[%emt 0:00:24]} Qxe3 {[%emt 0:00:51]} 24. fxe3 {[%emt 0:00:04]} exd5 {[%emt 0:01:31]} 25. Rc3 {[%emt 0:03:02]} Re7 {[%emt 0:05:33]} 26. Nd4 {[%emt 0:01:53]} Be4 {[%emt 0:05:25]} 27. Rac1 {[%emt 0:03:44]} g6 {[%emt 0:02:13]} 28. Rc8 {[%emt 0:00:44]} Rxc8 {[%emt 0:00:39]} 29. Rxc8+ {[%emt 0:00:05]} Kf7 {[%emt 0:00:29]} 30. Nxe4 {[%emt 0:03:59]} Nxe4 {[%emt 0:01:17]} 31. Bf3 {[%emt 0:02:06]} Kf6 {[%emt 0:09:30]} 32. Kg2 {[%emt 0:02:58]} h5 {[%emt 0:02:01]} 33. Be2 {[%emt 0:01:57]} Nc7 {[%emt 0:04:53]} 34. Bd3 {[%emt 0:03:25]} Nc5 {[%emt 0:03:03]} 35. Bc2 {[%emt 0:00:21]} N5e6 {[%emt 0:05:36]} 36. Nxe6 {[%emt 0:07:22]} Nxe6 {[%emt 0:00:09]} 37. Rg8 {[%emt 0:00:21]} Rg7 {[%emt 0:00:35]} 38. Rxg7 {[%emt 0:00:12]} Kxg7 {[%emt 0:01:29]} 39. Kf3 {[%emt 0:03:04]} Kf6 {[%emt 0:00:07]} 40. b4 {[%emt 0:01:23]} axb4 {[%emt 0:03:54]} 41. axb4 {[%emt 0:30:08]} g5 {[%emt 0:34:51]} 42. hxg5+ {[%emt 0:06:02]} 1/2-1/2

[Event "WSTCC-65 2024"]
[Site "Krakow"]
[Date "2024.07.02"]
[Round "1.2"]
[White "Holst, Per"]
[Black "Kosten, Anthony C."]
[Result "0-1"]
[ECO "E16"]
[WhiteElo "2073"]
[BlackElo "2360"]
[Annotator "RC"]
[PlyCount "54"]
[EventDate "2024.07.01"]
[EventType "team-tourn"]
[EventCountry "POL"]
[SourceTitle "playchess.com"]
[Source "ChessBase"]
[SourceQuality "1"]
[TimeControl "40/5400+30:1800+30"]

1. d4 {[%emt 0:00:01]} Nf6 {[%emt 0:00:10]} 2. c4 {[%emt 0:00:09]} e6 {[%emt 0:00:21]} 3. Nf3 {[%emt 0:00:07]} Bb4+ {[%emt 0:00:28]} 4. Bd2 {[%emt 0:00:10]} Qe7 {[%emt 0:00:16]} 5. g3 {[%emt 0:00:38]} Bxd2+ {[%emt 0:00:31]} 6. Qxd2 {[%emt 0:00:38]} Nc6 {[%emt 0:00:30]} 7. Bg2 {[%emt 0:03:05]} Ne4 {[%emt 0:01:14]} 8. Qc2 {[%emt 0:00:33]} Qb4+ {[%emt 0:00:39]} 9. Kf1 {[%emt 0:00:29]} d5 {[%emt 0:04:15]} 10. e3 {[%emt 0:03:55]} O-O {[%emt 0:05:51]} 11. Nbd2 {[%emt 0:04:38]} f5 {[%emt 0:03:27]} 12. a3 {[%emt 0:03:41]} Qe7 {[%emt 0:01:58]} 13. b4 {[%emt 0:00:57]} a6 {[%emt 0:07:51]} 14. Ke2 {[%emt 0:08:15]} Bd7 {[%emt 0:04:22]} 15. Rhb1 {[%emt 0:03:32]} Be8 {[%emt 0:05:01]} 16. b5 {[%emt 0:11:19]} Na5 {[%emt 0:04:40]} 17. a4 {[%emt 0:09:17]} Nxc4 {[%emt 0:12:13]} 18. Nxc4 {[%emt 0:02:19]} dxc4 {[%emt 0:00:07]} 19. Ne5 {[%emt 0:02:23]} axb5 {[%emt 0:01:33]} 20. axb5 {[%emt 0:08:14]} Rxa1 {[%emt 0:01:41]} 21. Rxa1 {[%emt 0:00:13]} Nd6 {[%emt 0:03:54]} 22. Rb1 {[%emt 0:02:56]} Nxb5 {[%emt 0:07:36]} 23. Nxc4 {[%emt 0:03:22]} c6 {[%emt 0:00:33]} 24. Rb3 {[%emt 0:04:14]} Bh5+ {[%emt 0:01:24]} 25. Ke1 {[%emt 0:01:12]} Ra8 {[%emt 0:00:25]} 26. Qb1 {[%emt 0:00:50]} Qd8 {[%emt 0:01:08]} 27. Ne5 {[%emt 0:01:20]} Nxd4 {[%emt 0:06:13]} 0-1

[Event "WSTCC-65 2024"]
[Site "Krakow"]
[Date "2024.07.02"]
[Round "1.2"]
[White "Dovzhenko, Viktor"]
[Black "Messa, Roberto"]
[Result "0-1"]
[ECO "A00"]
[WhiteElo "2044"]
[BlackElo "2262"]
[Annotator "TA"]
[PlyCount "120"]
[EventDate "2024.07.01"]
[EventType "team-tourn"]
[EventCountry "POL"]
[SourceTitle "playchess.com"]
[Source "ChessBase"]
[SourceQuality "1"]
[TimeControl "40/5400+30:1800+30"]

{[%evp 13,120,-23,-25,-32,-14,-30,-25,-37,0,-25,-22,-20,-14,-16,-15,-39,-37,-39,-38,-47,-10,-45,-7,-36,-35,-29,-9,-26,0,0,0,-13,0,-32,0,0,0,0,0,-11,0,-16,0,-62,-49,-83,-45,-63,-56,-65,-55,-52,-63,-71,0,0,18,0,0,0,14,14,0,0,128,125,150,167,170,156,172,112,78,70,73,70,80,102,73,-112,2,-904,-887,-1254,-1208,-1456,-1502,-1493,-1473,-1441,-1305,-1722,-1575,-29976,-29977,-29971,-29964,-5206,-5206,-29984,-29985,-29985,-29986,-29986,-29987,-29988,-29989,-29989,-29990]} 1. g3 {[%emt 0:00:24]} d5 {[%emt 0:01:26]} 2. Bg2 {[%emt 0:00:08]} Nf6 {[%emt 0:00:33]} 3. c4 {[%emt 0:01:00]} e6 {[%emt 0:01:39]} 4. Qc2 {[%emt 0:02:06]} c5 {[%emt 0:01:39]} 5. Nf3 {[%emt 0:05:12]} Nc6 {[%emt 0:02:00]} 6. d3 {[%emt 0:08:59] A15: English Opening: 1...Nf6.} d4 {[%emt 0:00:12]} 7. O-O {[%emt 0:01:05]} e5 {[%emt 0:03:42]} 8. a3 $146 {[%emt 0:01:56]} ({Predecessor:} 8. e3 h6 9. exd4 exd4 10. Re1+ Be7 11. a3 O-O 12. Nbd2 Bd6 13. Ne4 Nxe4 14. Rxe4 {1-0 Tomilova,E (2309)-Voit,D (2386) RUS-ch blitz (Women) 2016 (9.1)}) 8... a5 {[%emt 0:04:23]} 9. e3 {[%emt 0:02:10]} Be7 {[%emt 0:02:45]} 10. exd4 {[%emt 0:02:24]} exd4 {[%emt 0:03:10]} 11. Re1 {[%emt 0:07:44]} O-O {[%emt 0:00:07]} 12. Bg5 {[%emt 0:07:16]} h6 {[%emt 0:02:38]} 13. Bxf6 {[%emt 0:00:24]} Bxf6 {[%emt 0:00:03]} 14. Nbd2 {[%emt 0:00:22]} Bg4 {[%emt 0:04:06]} 15. h3 {[%emt 0:16:54]} Bd7 {[%emt 0:00:16]} 16. Re2 {[%emt 0:05:12]} Qc8 {[%emt 0:05:56]} 17. Kh2 {[%emt 0:03:23]} Ra6 {[%emt 0:01:55]} 18. Nb3 {[%emt 0:01:58]} b6 {[%emt 0:05:42]} 19. Rae1 {[%emt 0:00:36]} Ra7 {[%emt 0:02:55]} 20. Nbd2 {[%emt 0:04:25]} Bf5 {[%emt 0:00:29]} 21. Ne4 {[%emt 0:01:04]} Be7 {[%emt 0:00:15]} 22. Qd2 {[%emt 0:01:18]} Bh7 {[%emt 0:13:14]} 23. Qf4 {[%emt 0:04:01]} Rd8 {[%emt 0:13:34]} 24. Ne5 {[%emt 0:03:22]} Nxe5 {[%emt 0:03:33]} 25. Qxe5 {[%emt 0:00:10]} Bf8 {[%emt 0:01:22]} 26. Qf4 {[%emt 0:03:39]} Qf5 {[%emt 0:09:39]} 27. Qd2 {[%emt 0:04:14]} Qd7 {[%emt 0:00:42]} 28. g4 {[%emt 0:00:27]} (28. Qc2 $11) 28... f5 $15 {[%emt 0:02:36]} 29. gxf5 {[%emt 0:00:35]} Bxf5 {[%emt 0:00:45]} 30. Ng3 {[%emt 0:01:25]} Bd6 {[%emt 0:01:34]} 31. Bd5+ {[%emt 0:00:20]} Kh8 {[%emt 0:02:40]} 32. Be6 $1 {[%emt 0:00:17]} Bxe6 {[%emt 0:01:01]} 33. Rxe6 {[%emt 0:00:13]} Qf7 {[%emt 0:02:53]} ({Black should play} 33... Rf8 $1 $17 {aiming for ...Bf4.} 34. Qe2 b5 35. cxb5 Bxg3+ 36. fxg3 Qxb5) 34. Kg2 $11 {[%emt 0:04:23]} ({Wrong is} 34. Rxh6+ $2 gxh6 35. Qxh6+ Kg8 36. Qg5+ Kh7 37. Qh4+ Kg7 38. Qg5+ Qg6 (38... Kh7 $2 39. Qh4+ Kg7 40. Qg5+ Qg6 41. Qxd8 $19) 39. Qxd8 Rf7 $19) 34... Rad7 {[%emt 0:00:45]} 35. Qe2 {[%emt 0:02:10]} Rf8 {[%emt 0:00:44]} 36. Re8 {[%emt 0:00:48]} Rd8 {[%emt 0:00:06]} 37. Rxd8 {[%emt 0:00:22]} Rxd8 {[%emt 0:00:23]} 38. Qe6 {[%emt 0:00:34]} Qxe6 {[%emt 0:05:26]} (38... Qb7+ $11 39. Qe4 Qf7) 39. Rxe6 $16 {[%emt 0:00:02]} Rd7 {[%emt 0:00:11]} 40. Nf5 $1 {[%emt 0:05:10]} Bc7 {[%emt 0:00:08]} 41. Ne7 {[%emt 0:30:41]} Bd8 {[%emt 0:31:53]} 42. Nd5 {[%emt 0:01:01]} (42. Nc8 $18) 42... b5 $16 {[%emt 0:00:00]} 43. Rc6 {[%emt 0:00:00]} bxc4 {[%emt 0:00:00]} 44. dxc4 {[%emt 0:00:00]} Bf6 {[%emt 0:00:00]} 45. Rxc5 {[%emt 0:00:00]} d3 {[%emt 0:00:00]} 46. Kf3 $2 {[%emt 0:00:00] [#]} (46. Kf1 $16 {b4 is the strong threat.} Bxb2 47. Rxa5) 46... Bxb2 {[%emt 0:00:00]} (46... Bd4 $1 $17 {[%cal Rd4c5]} 47. Rc8+ (47. Rxa5 $2 {loses.} Rf7+ 48. Kg3 d2 $19) 47... Kh7) 47. Ke3 $2 {[%emt 0:00:00][%mdl 8192] [#]} (47. Rxa5 $11 Bc1 48. Ra4) 47... Bd4+ $1 $19 {[%emt 0:00:00]} 48. Kxd4 {[%emt 0:00:00]} d2 {[%emt 0:00:00]} 49. Rxa5 {[%emt 0:00:00]} d1=Q+ {[%emt 0:00:00]} (49... d1=B $2 {is the wrong capture.} 50. c5 h5 51. Ra8+ Kh7 52. c6 $18) 50. Kc5 {[%emt 0:00:00]} Qf3 {[%emt 0:00:00]} 51. Ra8+ {[%emt 0:00:00]} Kh7 {[%emt 0:00:00]} 52. Kc6 {[%emt 0:00:00]} Qxh3 {[%emt 0:00:00]} 53. a4 {[%emt 0:00:00]} Qe6+ {[%emt 0:00:00]} 54. Kc5 {[%emt 0:00:00]} Qd6+ {[%emt 0:00:00]} 55. Kd4 {[%emt 0:00:00]} Qc6 {[%emt 0:00:00]} 56. Ra5 {[%emt 0:00:00]} Qb6+ {[%emt 0:00:00]} 57. Rc5 {[%emt 0:00:00]} Qa7 {[%emt 0:00:00]} 58. a5 {[%emt 0:00:00]} Rd6 {[%emt 0:00:00]} 59. f4 {[%emt 0:00:00]} h5 {[%emt 0:00:00]} 60. f5 {[%emt 0:00:00]} h4 {[%emt 0:00:00]} 0-1

[Event "WSTCC-65 2024"]
[Site "Krakow"]
[Date "2024.07.02"]
[Round "1.2"]
[White "Lomer, Edmund"]
[Black "Rooze, Jan"]
[Result "0-1"]
[ECO "A04"]
[WhiteElo "1943"]
[BlackElo "2222"]
[Annotator "TA"]
[PlyCount "102"]
[EventDate "2024.07.01"]
[EventType "team-tourn"]
[EventCountry "POL"]
[SourceTitle "playchess.com"]
[Source "ChessBase"]
[SourceQuality "1"]
[TimeControl "40/5400+30:1800+30"]

{[%evp 17,102,37,33,18,29,22,17,23,28,14,23,16,17,9,9,12,15,12,14,8,11,0,3,-6,0,-20,0,-13,-3,-45,0,-68,-74,-37,-49,-62,-44,-620,-623,-606,-568,-650,-650,-737,-607,-1008,-956,-1067,-1049,-29987,-29988,-29972,-943,-798,-689,-1478,-1420,-1490,-1402,-1534,-1534,-1116,-968,-1433,-1316,-29982,-29981,-29984,-29984,-29984,-29985,-29986,-29985,-29988,-29989,-29989,-29989,-29990,-29984,-29984,-29985,-29985,-29983,-29985,-29986,-29986,-29987]} 1. Nf3 {[%emt 0:00:30]} c5 {[%emt 0:00:30]} 2. g3 {[%emt 0:00:30]} b6 {[%emt 0:00:30]} 3. Bg2 {[%emt 0:00:30]} Bb7 {[%emt 0:00:30]} 4. O-O {[%emt 0:00:30]} Nf6 {[%emt 0:00:30]} 5. c4 {[%emt 0:00:30]} g6 {[%emt 0:00:30]} 6. d4 {[%emt 0:00:00]} cxd4 {[%emt 0:00:00]} 7. Qxd4 {[%emt 0:00:00]} Bg7 {[%emt 0:00:00]} 8. Nc3 {[%emt 0:00:00]} d6 {[%emt 0:00:00]} 9. Rd1 {[%emt 0:01:22]} Nbd7 {[%emt 0:00:00]} 10. Bg5 {[%emt 0:02:12]} Rc8 {[%emt 0:12:16]} 11. Rac1 {[%emt 0:04:12]} h6 {[%emt 0:09:19]} 12. Bxf6 {[%emt 0:04:17] The position is equal.} Bxf6 {[%emt 0:08:50]} 13. Qd3 {[%emt 0:11:14]} O-O {[%emt 0:02:08]} 14. b3 {[%emt 0:04:21]} Bg7 {[%emt 0:02:20]} 15. Nh4 {[%emt 0:05:38][%cal Bf3h4,Bh4g2,Bg2f4][%mdl 32]} Bxg2 {[%emt 0:05:20]} 16. Nxg2 {[%emt 0:01:14]} a6 {[%emt 0:01:16]} 17. Nf4 {[%emt 0:03:55]} Re8 {[%emt 0:02:22]} 18. Ne4 {[%emt 0:05:23]} Ne5 {[%emt 0:08:18]} 19. Qd5 {[%emt 0:04:19]} Qc7 {[%emt 0:01:39]} 20. h4 {[%emt 0:07:59]} Qb8 {[%emt 0:07:03]} 21. Nd3 {[%emt 0:07:02]} Nxd3 {[%emt 0:06:51]} 22. Qxd3 {[%emt 0:00:39]} b5 {[%emt 0:00:56]} 23. c5 {[%emt 0:02:09]} dxc5 {[%emt 0:00:29]} (23... f5 $5 24. Nxd6 exd6 25. cxd6 Rcd8 $11 (25... Rxc1 26. Qd5+ Kh7 27. Rxc1 $15)) 24. Rxc5 {[%emt 0:00:34]} (24. Nxc5 $11 Red8 25. Nd7) 24... f5 $1 $15 {[%emt 0:06:27]} 25. Rxc8 {[%emt 0:03:24]} Qxc8 {[%emt 0:00:11]} 26. Nd2 {[%emt 0:05:01]} Rd8 {[%emt 0:00:42]} 27. Qe3 {[%emt 0:01:27][%mdl 8192] [#] Loses the game.} (27. Qb1 $15) 27... Qc2 $19 {[%emt 0:04:09][%csl LRa2,LRd1]} 28. Qe6+ {[%emt 0:03:28]} Kh7 {[%emt 0:00:17]} 29. Rf1 {[%emt 0:00:36]} Rxd2 {[%emt 0:00:21]} 30. Qxa6 {[%emt 0:03:48]} Rxe2 {[%emt 0:01:43]} 31. h5 {[%emt 0:01:50]} gxh5 {[%emt 0:00:23][%cal Oe2f2]} 32. Qxb5 {[%emt 0:00:38]} h4 {[%emt 0:00:50][%cal Oe2f2] [#] ( -> ...Rxf2!)} (32... Qxa2 $2 33. Qxf5+ Kg8 34. Rc1 $19) 33. gxh4 {[%emt 0:00:30]} Qe4 {[%emt 0:01:38]} (33... Qxa2 34. Qxf5+ Kg8 35. Rc1 $11) 34. Qc4 {[%emt 0:01:11]} Qxc4 {[%emt 0:00:33]} (34... Qf3 $142 35. h5 Re4 (35... Rxa2 $2 36. Qf7 $19) (35... Qxh5 $2 36. Rc1 $19) 36. Rc1 Qg4+ 37. Kf1 Qh3+ (37... Qxh5 {gets mated.} 38. Kg2 Qg4+ 39. Kh1 Qh3+ 40. Kg1 Rg4+ 41. Qxg4 fxg4 42. Rd1 Be5 43. Rd2 Bh2+ 44. Kh1 Bf4+ 45. Kg1 Bxd2 46. b4 g3 47. b5 Qh2+ 48. Kf1 Qxf2#) 38. Kg1 Rg4+ 39. Qxg4 fxg4 (39... Qxg4+ $2 40. Kf1 $19) 40. Rd1 Be5 (40... Qxh5 $2 41. Rd3 $19) 41. Rd2 Bh2+ (41... Qxh5 $2 42. Rd3 $19) 42. Kh1 Bf4+ (42... Qxh5 {leads to mate.} 43. Rd5 Qh3 44. Rf5 g3 45. fxg3 Bxg3+ 46. Kg1 Qxf5 47. Kg2 Qf2+ 48. Kh3 h5 49. b4 Qh2#) 43. Kg1 Bxd2 44. a3 g3 (44... Qxb3 {is a self mate.} 45. Kg2 Qh3+ 46. Kg1 g3 47. a4 Qh2+ 48. Kf1 Qxf2#) 45. b4 Qh2+ 46. Kf1 Qxf2#) 35. bxc4 {[%emt 0:00:01]} Rxa2 {[%emt 0:00:17][%mdl 4096] Endgame. KRB-KR} 36. Kg2 {[%emt 0:00:37]} Rc2 {[%emt 0:00:21]} 37. Re1 {[%emt 0:00:56]} Bf6 {[%emt 0:00:16]} 38. h5 {[%emt 0:00:14]} Rxc4 {[%emt 0:00:17]} 39. Kg3 {[%emt 0:00:18]} Kg7 {[%emt 0:00:47]} 40. Rh1 {[%emt 0:00:32]} Bg5 {[%emt 0:00:53]} 41. f3 {[%emt 0:30:22]} Kf6 {[%emt 0:30:33] Black mates.} 42. Rh3 {[%emt 0:00:38]} Bf4+ {[%emt 0:01:42]} 43. Kg2 {[%emt 0:00:36]} Rc2+ {[%emt 0:00:15]} 44. Kg1 {[%emt 0:00:21]} Kg5 {[%emt 0:00:44]} 45. Kh1 {[%emt 0:00:38]} e5 {[%emt 0:01:54]} 46. Kg1 {[%emt 0:00:30]} Rb2 {[%emt 0:02:48]} 47. Kh1 {[%emt 0:00:42]} Rh2+ {[%emt 0:00:39]} 48. Rxh2 Bxh2 49. Kxh2 {[%emt 0:01:11]} Kxh5 {[%emt 0:00:34]} 50. Kh3 {[%emt 0:00:26]} Kg5 {[%emt 0:00:17]} 51. Kg3 {[%emt 0:00:25]} h5 {[%emt 0:00:28] Weighted Error Value: White=0.88/Black=0.32.  Loses game:     	White=1     	---        Mistake:       	White=1     	---        Inaccurate:     	White=1     	Black=1      OK:         	White=5     	Black=4      Best:        	White=1     	Black=2      Strong:       	---       	Black=1} 0-1